bitfinex-derivatives/quotes_SOLF0:USTF0_20250818
["timestamp","ask_amount","ask_price","bid_price","bid_amount"]
[1755546283237,3.02,183.38,183.34,8.29301238]
[1755546283639,3.02,183.37,183.34,0.04121238]
[1755546284133,3.02,183.37,183.34,2.84121238]
[1755546286253,3.02,183.35,183.34,0.04121238]
[1755546286446,144.24392311,183.35,183.34,0.04121238]
[1755546286646,3.02,183.34,183.27,2.8]
[1755546286949,3.91016099,183.33,183.27,2.8]
[1755546287147,3.02,183.31,183.27,2.8]
[1755546287343,3.02,183.3,183.27,2.8]
[1755546287846,3.0564637,183.3,183.27,2.8]
[1755546288848,0.0364637,183.3,183.27,2.8]
[1755546289743,3.0564637,183.3,183.27,2.8]
[1755546289938,3.02,183.28,183.25,2.8]
[1755546290343,0.0364637,183.3,183.25,2.8]
[1755546290549,3.0564637,183.3,183.26,2.8]
[1755546291348,3.02,183.29,183.26,2.8]
[1755546297249,0.0364637,183.3,183.26,2.8]
[1755546297450,3.17,183.29,183.26,2.8]
[1755546297758,3.17,183.28,183.24,5.4546]
[1755546298150,0.0364637,183.3,183.26,2.8]
[1755546298452,3.17,183.29,183.26,2.8]
[1755546298653,3.17,183.29,183.22,5.4551]
[1755546298856,3.17,183.29,183.21,6.61376212]
[1755546299154,3.17,183.29,183.22,2.8]
[1755546299354,3.17,183.29,183.23,5.4549]
[1755546299654,3.17,183.28,183.25,2.8]
[1755546299856,3.17,183.28,183.26,2.8]
[1755546300347,3.17,183.29,183.26,2.8]
[1755546301343,3.17,183.29,183.23,5.4549]
[1755546301344,3.17,183.29,183.23,2.8]
[1755546303553,3.17,183.29,183.2,6.61376212]
[1755546304058,3.17,183.29,183.2,12.06956212]
[1755546304357,0.04155789,183.26,183.2,12.06956212]
[1755546304559,0.04155789,183.26,183.21,5.4556]
[1755546304759,3.17,183.25,183.22,2.8]
[1755546304957,3.21155789,183.26,183.21,2.8]
[1755546305153,3.21155789,183.26,183.22,2.8]
[1755546305359,0.04155789,183.26,183.2,3.81376212]
[1755546305559,0.04155789,183.26,183.23,2.8]
[1755546305757,3.21155789,183.26,183.23,2.8]
[1755546308569,3.17,183.25,183.21,5.4554]
[1755546308761,3.17,183.25,183.22,2.8]
[1755546309357,0.04155789,183.26,183.22,2.8]
[1755546309664,3.21155789,183.26,183.22,2.8]
[1755546310069,3.21155789,183.26,183.23,2.8]
[1755546312470,3.21155789,183.26,183.2,3.81376212]
[1755546312970,3.21155789,183.26,183.21,5.4556]
[1755546313274,3.17,183.25,183.22,2.8]
[1755546313770,0.04155789,183.26,183.23,2.8]
[1755546313975,3.21155789,183.26,183.23,2.8]
[1755546315480,3.21155789,183.26,183.21,5.4555]
[1755546315775,0.04155789,183.26,183.24,2.8]
[1755546316777,0.04155789,183.26,183.25,2.8]
[1755546317577,0.04155789,183.26,183.22,2.8]
[1755546317781,0.04155789,183.26,183.23,2.8]
[1755546317976,0.04155789,183.26,183.24,2.8]
[1755546318981,3.21155789,183.26,183.21,5.4556]
[1755546319186,3.21155789,183.26,183.22,2.8]
[1755546319378,3.21155789,183.26,183.23,2.8]
[1755546320176,3.21155789,183.26,183.24,2.8]
[1755546321288,3.17,183.25,183.22,5.24482865]
[1755546321783,3.17,183.25,183.22,2.44482865]
[1755546321982,0.04155789,183.26,183.2,7.90072865]
[1755546322185,3.1,183.25,183.2,2.44482865]
[1755546322376,3.1,183.24,183.2,5.24482865]
[1755546322679,3.1,183.23,183.17,2.44482865]
[1755546322888,3.1,183.21,183.18,2.8]
[1755546323187,3.1,183.2,183.17,2.44482865]
[1755546323573,3.1,183.2,183.17,5.24482865]
[1755546323780,2.44482865,183.22,183.18,2.8]
[1755546324083,0.03651475,183.2,183.18,2.8]
[1755546324287,0.03651475,183.2,183.19,2.8]
[1755546324486,0.03651475,183.2,183.19,5.24482865]
[1755546325391,0.03651475,183.2,183.19,10.70102865]
[1755546326292,0.03651475,183.2,183.19,8.2562]
[1755546330994,0.03651475,183.2,183.19,5.4562]
[1755546331198,3.13651475,183.2,183.16,2.8]
[1755546331390,3.1,183.19,183.16,2.8]
[1755546331594,3.1,183.18,183.15,79.23164571]
[1755546331986,0.03651475,183.2,183.15,79.23164571]
[1755546332192,3.13651475,183.2,183.17,8.2568]
[1755546332689,0.03651475,183.2,183.19,2.8]
[1755546334303,0.03651475,183.2,183.19,8.2562]
[1755546337390,3.13651475,183.2,183.15,85.85211375]
[1755546337695,3.1,183.19,183.16,2.8]
[1755546337902,3.1,183.19,183.16,8.2569]
[1755546338198,3.1,183.18,183.16,5.4569]
[1755546338592,3.1,183.18,183.15,9.27776804]
[1755546339605,3.1,183.18,183.16,5.4571]
[1755546339789,3.1,183.18,183.15,3.82046804]
[1755546340601,0.03651475,183.2,183.16,2.8]
[1755546340803,0.03651475,183.2,183.19,2.8]
[1755546342005,0.03651475,183.2,183.19,8.2562]
[1755546344000,3.1,183.29,183.19,2.8]
[1755546344200,6.99911158,183.28,183.24,2.79]
[1755546344502,3.1,183.3,183.23,3.82046804]
[1755546344705,3.89874137,183.29,183.23,3.82046804]
[1755546345004,3.89874137,183.28,183.25,5.4543]
[1755546345303,3.89874137,183.28,183.23,6.61046804]
[1755546345304,3.1,183.3,183.24,2.82823894]
[1755546345802,3.1,183.28,183.26,5.454]
[1755546346499,137.30046804,183.35,183.25,5.4543]
[1755546346696,6.99694974,183.3,183.25,5.4543]
[1755546347006,3.1,183.3,183.25,5.4543]
[1755546347202,3.1,183.29,183.25,5.4543]
[1755546347402,3.1,183.28,183.26,5.4541]
[1755546347602,3.1,183.32,183.24,2.82823894]
[1755546347797,3.89928254,183.31,183.29,5.4532]
[1755546347997,3.1,183.32,183.29,5.4532]
[1755546348196,366.54,183.36,183.29,3.82046804]
[1755546348402,3.1,183.38,183.32,6.61046804]
[1755546348605,6.99954951,183.37,183.32,6.61046804]
[1755546348796,3.89954951,183.36,183.32,6.61046804]
[1755546348996,3.1,183.38,183.32,6.61046804]
[1755546349203,3.1,183.36,183.33,0.03913767]
[1755546350509,53.1,183.43,183.34,3.82046804]
[1755546350710,3.89497988,183.42,183.34,3.82046804]
[1755546350908,3.1,183.4,183.34,9.27216804]
[1755546351304,3.89126275,183.39,183.33,2.79]
[1755546351516,3.1,183.4,183.33,8.242]
[1755546351713,3.1,183.38,183.35,0.03941999]
[1755546352018,3.1,183.37,183.35,0.03941999]
[1755546353417,3.0,183.44,183.35,0.03941999]
[1755546353617,8.54122861,183.43,183.35,0.03941999]
[1755546353818,6.88917447,183.42,183.35,0.03941999]
[1755546354020,3.88917447,183.41,183.35,0.03941999]
[1755546354220,3.0,183.39,183.35,0.03941999]
[1755546354423,3.0,183.38,183.35,0.03941999]
[1755546354821,3.0,183.37,183.35,0.03941999]
[1755546355120,133.46,183.45,183.35,0.03941999]
[1755546355320,3.0,183.36,183.35,0.03941999]
[1755546356822,3.0,183.42,183.35,0.03941999]
[1755546357135,3.88432332,183.41,183.35,0.03941999]
[1755546357429,3.0,183.37,183.35,0.03941999]
[1755546357924,3.0,183.36,183.35,0.03941999]
[1755546360626,3.0,183.36,183.28,3.82046804]
[1755546361035,3.0,183.36,183.27,8.2538]
[1755546361533,3.0,183.35,183.27,8.2538]
[1755546362123,0.03791589,183.33,183.27,8.2538]
[1755546362324,0.03791589,183.33,183.3,2.84]
[1755546362525,0.03791589,183.33,183.32,2.84]
[1755546362725,3.0,183.36,183.32,5.4522]
[1755546363026,50.0,183.41,183.31,3.82046804]
[1755546363027,0.04183773,183.34,183.33,2.84]
[1755546363528,3.0,183.4,183.33,8.2919]
[1755546363732,0.04065627,183.35,183.33,8.2919]
[1755546363920,3.04065627,183.35,183.31,3.82046804]
[1755546364123,3.04065627,183.35,183.31,6.66046804]
[1755546364527,3.0,183.34,183.28,3.82046804]
[1755546364731,3.0,183.34,183.28,6.66046804]
[1755546365133,3.0,183.34,183.28,12.11376804]
[1755546365332,3.03874998,183.33,183.28,12.11376804]
[1755546365529,3.0,183.32,183.28,12.11376804]
[1755546366035,3.0,183.32,183.25,3.82046804]
[1755546366534,3.0,183.32,183.26,5.454]
[1755546366831,3.0,183.28,183.22,3.82046804]
[1755546367143,3.0,183.28,183.22,6.66046804]
[1755546368232,3.0,183.28,183.22,2.84]
[1755546368537,3.0,183.28,183.22,8.2953]
[1755546368832,3.0,183.28,183.22,2.84]
[1755546369532,3.0,183.28,183.19,3.82046804]
[1755546370228,0.03436799,183.25,183.19,9.27656804]
[1755546370429,3.03436799,183.25,183.19,9.27656804]
[1755546370630,3.03436799,183.25,183.19,3.82046804]
[1755546371336,3.03436799,183.25,183.19,9.27656804]
[1755546373744,3.03436799,183.25,183.19,5.4561]
[1755546374236,3.03436799,183.25,183.18,8.2965]
[1755546374746,3.03436799,183.25,183.16,6.66046804]
[1755546374934,3.03436799,183.25,183.17,5.4567]
[1755546377146,3.03436799,183.25,183.18,5.4564]
[1755546377537,3.03436799,183.25,183.19,2.84]
[1755546378241,0.03436799,183.25,183.19,2.84]
[1755546378542,0.03436799,183.25,183.2,5.4558]
[1755546378739,3.0,183.24,183.16,2.84]
[1755546379140,3.0,183.24,183.16,8.2969]
[1755546379444,0.04154485,183.22,183.16,2.84]
[1755546380544,3.04154485,183.22,183.18,2.84]
[1755546380743,3.0,183.21,183.18,2.84]
[1755546381342,0.04154485,183.22,183.19,2.84]
[1755546381649,0.04154485,183.22,183.2,2.84]
[1755546381843,0.04154485,183.22,183.11,366.44]
[1755546381844,0.04154485,183.22,183.21,2.84]
[1755546382551,0.04154485,183.22,183.21,8.2956]
[1755546382753,0.04154485,183.22,183.21,2.84]
[1755546383250,0.04154485,183.22,183.18,3.82046804]
[1755546383643,0.04154485,183.22,183.2,2.83]
[1755546384053,0.04154485,183.22,183.21,2.83]
[1755546385059,0.04154485,183.22,183.19,5.4561]
[1755546385353,3.04,183.3,183.21,6.65046804]
[1755546385541,3.04,183.3,183.24,6.61046804]
[1755546386450,3.04,183.3,183.24,8.2446]
[1755546386846,3.04,183.29,183.25,0.03561054]
[1755546387047,50.0,183.31,183.25,0.03561054]
[1755546387451,3.04,183.29,183.25,0.03561054]
[1755546387656,3.04,183.29,183.25,5.49001054]
[1755546387961,3.04,183.29,183.26,2.79]
[1755546388450,50.0,183.31,183.26,8.2441]
[1755546388753,50.0,183.31,183.27,2.79]
[1755546388953,53.04,183.31,183.27,2.79]
[1755546390056,3.04,183.3,183.25,5.48991054]
[1755546390556,3.04,183.3,183.25,8.27991054]
[1755546390858,3.04,183.3,183.26,2.79]
[1755546391052,3.04,183.3,183.27,2.79]
[1755546391355,3.04,183.29,183.26,8.2441]
[1755546391656,50.0,183.31,183.26,8.2441]
[1755546391851,3.04,183.33,183.26,6.61046804]
[1755546392055,53.04,183.36,183.29,3.82046804]
[1755546392655,50.0,183.36,183.31,0.03970337]
[1755546392953,3.04,183.34,183.31,0.03970337]
[1755546393159,3.04,183.33,183.31,0.03970337]
[1755546393856,3.04,183.35,183.31,0.03970337]
[1755546394053,3.04,183.34,183.31,0.03970337]
[1755546395461,136.66,183.37,183.32,2.79]
[1755546395655,133.62,183.37,183.31,0.03970337]
[1755546395854,3.04,183.34,183.31,0.03970337]
[1755546396355,133.62,183.37,183.33,2.79]
[1755546396559,133.62,183.37,183.34,2.79]
[1755546396758,369.66,183.4,183.34,2.79]
[1755546397168,3.04,183.4,183.34,2.79]
[1755546397560,3.04,183.4,183.36,2.79]
[1755546397760,3.04,183.4,183.35,3.85926583]
[1755546397963,3.04,183.41,183.37,2.79]
[1755546399473,3.04,183.4,183.37,2.79]
[1755546399666,3.04,183.42,183.38,2.79]
[1755546399969,3.04,183.46,183.38,3.82046804]
[1755546400168,3.88687745,183.45,183.38,3.82046804]
[1755546400466,3.04,183.46,183.38,3.82046804]
[1755546400671,3.04,183.46,183.4,0.03665255]
[1755546401872,3.04,183.46,183.4,5.48665255]
[1755546402074,3.04,183.49,183.4,0.03665255]
[1755546402562,3.04,183.49,183.41,6.61046804]
[1755546402759,3.04,183.49,183.41,12.05996804]
[1755546402973,3.04,183.49,183.41,6.61046804]
[1755546404470,53.87752737,183.48,183.4,0.03665255]
[1755546404677,6.91715585,183.47,183.4,0.03665255]
[1755546404877,6.86046804,183.46,183.4,0.03665255]
[1755546405176,3.82046804,183.46,183.4,0.03665255]
[1755546405775,3.04,183.41,183.4,0.03665255]
[1755546406275,3.04,183.41,183.36,2.79]
[1755546406276,3.58,183.41,183.31,2.79]
[1755546406469,3.82046804,183.4,183.31,2.79]
[1755546406777,3.04,183.39,183.31,2.79]
[1755546407569,0.03946178,183.37,183.31,2.79]
[1755546407876,3.04,183.35,183.31,2.79]
[1755546408178,0.03946178,183.37,183.33,2.83]
[1755546408375,3.07946178,183.37,183.33,2.83]
[1755546408571,3.04,183.37,183.33,2.83]
[1755546408770,3.04,183.36,183.33,2.83]
[1755546408973,3.04,183.36,183.3,5.4528]
[1755546410075,3.04,183.36,183.31,5.4527]
[1755546410377,3.04,183.36,183.29,2.83]
[1755546410378,0.03925254,183.37,183.29,2.83]
[1755546410569,0.03925254,183.37,183.28,3.82046804]
[1755546410570,0.03925254,183.37,183.33,8.2818]
[1755546410773,0.03925254,183.37,183.35,2.83]
[1755546410976,0.03925254,183.37,183.36,2.83]
[1755546411477,3.07925254,183.37,183.34,2.83]
[1755546412381,0.03925254,183.37,183.34,2.83]
[1755546412675,0.03925254,183.37,183.33,2.83]
[1755546412869,0.03925254,183.37,183.31,3.82046804]
[1755546412870,0.03925254,183.37,183.32,2.83]
[1755546413378,0.03925254,183.37,183.34,2.83]
[1755546413564,0.03925254,183.37,183.31,6.65046804]
[1755546413970,0.03925254,183.37,183.31,2.83]
[1755546414669,0.03925254,183.37,183.31,8.2826]
[1755546414870,0.03925254,183.37,183.31,2.83]
[1755546415069,0.03925254,183.37,183.33,5.452]
[1755546415271,0.03925254,183.37,183.34,2.83]
[1755546415572,0.03925254,183.37,183.3,2.83]
[1755546416078,3.06925254,183.37,183.33,2.83]
[1755546416478,3.03,183.36,183.32,2.83]
[1755546416878,3.03,183.35,183.29,6.65046804]
[1755546417178,3.03,183.35,183.29,12.10366804]
[1755546418277,0.03925254,183.37,183.31,2.83]
[1755546420081,3.06925254,183.37,183.31,2.83]
[1755546420283,3.06925254,183.37,183.29,3.82046804]
[1755546420674,3.06925254,183.37,183.27,2.83]
[1755546420893,3.03,183.36,183.27,2.83]
[1755546421384,3.03,183.36,183.27,8.2837]
[1755546421587,0.03661217,183.33,183.27,8.2837]
[1755546421981,0.03661217,183.33,183.28,5.4535]
[1755546422189,0.03661217,183.33,183.29,2.83]
[1755546422486,0.03661217,183.33,183.29,3.82046804]
[1755546422780,0.03661217,183.33,183.3,2.83]
[1755546426399,3.06661217,183.33,183.3,2.83]
[1755546427890,0.03661217,183.33,183.3,2.83]
[1755546428890,3.06661217,183.33,183.3,2.83]
[1755546429076,3.03,183.32,183.26,6.65046804]
[1755546429389,3.03,183.32,183.26,2.83]
[1755546430490,3.03,183.32,183.24,3.82046804]
[1755546433188,3.03,183.32,183.23,2.83]
[1755546433889,0.03846974,183.29,183.23,2.83]
[1755546434088,3.06846974,183.29,183.23,2.83]
[1755546436190,0.03846974,183.29,183.24,3.82046804]
[1755546436389,0.03846974,183.29,183.25,2.83]
[1755546436591,0.03846974,183.29,183.26,2.83]
[1755546437186,3.06846974,183.29,183.24,3.82046804]
[1755546437490,3.06846974,183.29,183.21,2.83]
[1755546437888,3.03,183.29,183.21,2.83]
[1755546438291,0.03645893,183.27,183.21,8.2854]
[1755546438482,0.03645893,183.27,183.21,2.83]
[1755546438897,0.03645893,183.27,183.23,2.83]
[1755546439193,0.03645893,183.27,183.22,5.4553]
[1755546439378,0.03645893,183.27,183.24,2.83]
[1755546439779,0.03645893,183.27,183.25,2.83]
[1755546440189,0.03645893,183.27,183.26,2.83]
[1755546441989,0.03645893,183.27,183.23,9.27536804]
[1755546442390,0.03645893,183.27,183.24,2.84]
[1755546442590,0.03645893,183.27,183.25,2.84]
[1755546446095,0.03645893,183.27,183.23,2.84]
[1755546446296,2.96645893,183.27,183.23,2.84]
[1755546446690,2.93,183.26,183.23,2.84]
[1755546446895,2.93,183.26,183.21,3.82046804]
[1755546447095,2.93,183.26,183.22,2.84]
[1755546447399,2.93,183.25,183.22,2.84]
[1755546448298,0.03852507,183.26,183.21,3.82046804]
[1755546448491,0.03852507,183.26,183.25,2.84]
[1755546449499,0.03852507,183.26,183.23,5.4549]
[1755546449698,0.03852507,183.26,183.24,2.84]
[1755546449898,2.93,183.29,183.24,2.84]
[1755546450196,0.03963254,183.27,183.24,2.84]
[1755546451098,0.03963254,183.27,183.24,8.2947]
[1755546451306,2.96963254,183.27,183.23,3.82046804]
[1755546451691,2.96963254,183.27,183.23,6.66046804]
[1755546452100,2.96963254,183.27,183.23,3.82046804]
[1755546452302,2.96963254,183.27,183.24,2.84]
[1755546452897,0.03963254,183.27,183.25,2.84]
[1755546453598,0.03963254,183.27,183.23,9.27536804]
[1755546453805,2.96963254,183.27,183.23,12.11536804]
[1755546455304,2.96963254,183.27,183.23,9.27536804]
[1755546455500,0.03963254,183.27,183.24,2.84]
[1755546455705,0.03963254,183.27,183.24,5.4546]
[1755546455904,0.03963254,183.27,183.26,2.84]
[1755546457108,0.03963254,183.27,183.25,2.84]
[1755546457804,2.96963254,183.27,183.24,3.82046804]
[1755546458407,2.93,183.26,183.21,3.82046804]
[1755546458607,2.93,183.26,183.22,2.84]
[1755546459005,2.93,183.25,183.22,2.84]
[1755546461008,2.96642973,183.26,183.22,2.84]
[1755546461410,2.96642973,183.26,183.21,3.82046804]
[1755546461606,0.03642973,183.26,183.25,2.84]
[1755546464214,0.03642973,183.26,183.24,3.82046804]
[1755546464418,0.03642973,183.26,183.24,12.11506804]
[1755546464811,0.03642973,183.26,183.24,8.2946]
[1755546466216,0.03642973,183.26,183.24,2.84]
[1755546466417,2.96642973,183.26,183.23,9.27536804]
[1755546467019,0.03642973,183.26,183.23,3.82046804]
[1755546467210,2.93,183.24,183.21,2.84]
[1755546467416,2.93,183.24,183.21,6.66046804]
[1755546467613,0.03642973,183.26,183.21,3.82046804]
[1755546467920,2.93,183.25,183.22,2.84]
[1755546468226,0.03642973,183.26,183.23,2.84]
[1755546468425,0.03642973,183.26,183.24,6.66046804]
[1755546468723,2.96642973,183.26,183.24,3.82046804]
[1755546468926,2.93,183.26,183.24,3.82046804]
[1755546470430,0.04086344,183.27,183.25,2.84]
[1755546470633,2.93,183.26,183.16,2.84]
[1755546470925,2.93,183.26,183.2,9.27616804]
[1755546471117,2.93,183.26,183.18,2.84]
[1755546471320,0.04066243,183.25,183.2,3.82046804]
[1755546471826,2.93,183.24,183.2,3.82046804]
[1755546472027,0.04066243,183.25,183.2,3.82046804]
[1755546472227,3.02,183.23,183.2,3.82046804]
[1755546474227,0.04066243,183.25,183.21,2.84]
[1755546474731,3.06066243,183.25,183.21,2.84]
[1755546474928,0.04066243,183.25,183.21,2.84]
[1755546475433,0.04066243,183.25,183.2,3.82046804]
[1755546475726,3.02,183.24,183.21,3.82046804]
[1755546475927,3.02,183.24,183.21,6.66046804]
[1755546476428,3.02,183.24,183.21,12.11586804]
[1755546476630,0.04066243,183.25,183.22,2.84]
[1755546477032,3.06066243,183.25,183.22,5.4552]
[1755546477232,3.06066243,183.25,183.22,8.2952]
[1755546477732,0.04066243,183.25,183.23,2.84]
[1755546478431,0.04066243,183.25,183.22,2.84]
[1755546478738,0.04066243,183.25,183.24,2.84]
[1755546479032,3.02,183.29,183.24,3.82046804]
[1755546479227,6.92467447,183.28,183.24,6.66046804]
[1755546479427,3.02,183.28,183.24,6.66046804]
[1755546480227,50.0,183.33,183.24,6.66046804]
[1755546480429,3.02,183.31,183.24,0.0394581]
[1755546480632,3.02,183.29,183.24,0.0394581]
[1755546480829,3.02,183.27,183.24,0.0394581]
[1755546481031,3.02,183.25,183.24,0.0394581]
[1755546481334,3.90484066,183.25,183.24,0.0394581]
[1755546481930,6.92484066,183.25,183.24,0.0394581]
[1755546482731,3.90484066,183.25,183.24,0.0394581]
[1755546489941,6.92484066,183.25,183.24,0.0394581]
[1755546497841,11.562964,183.25,183.24,0.0394581]
[1755546498550,6.92484066,183.25,183.24,0.0394581]
[1755546499845,3.90484066,183.25,183.24,0.0394581]
[1755546500852,6.92484066,183.25,183.24,0.0394581]
[1755546502347,3.02,183.25,183.24,0.0394581]
[1755546503153,3.90570444,183.25,183.24,0.0394581]
[1755546504561,3.90570444,183.25,183.24,2.8694581]
[1755546505156,52.92,183.29,183.26,2.83]
[1755546505458,117.34434788,183.36,183.27,2.83]
[1755546505755,2.92,183.34,183.3,3.82046804]
[1755546505957,2.92,183.32,183.28,2.83]
[1755546506157,2.92,183.3,183.2,6.65046804]
[1755546506457,2.92,183.28,183.2,6.65046804]
[1755546506659,3.90845047,183.27,183.2,6.65046804]
[1755546506849,2.92,183.28,183.2,6.65046804]
[1755546506850,2.92,183.25,183.22,0.04116336]
[1755546507157,2.92,183.23,183.22,0.04116336]
[1755546507466,6.81131498,183.23,183.22,0.04116336]
[1755546519257,2.92,183.22,183.14,77.60869432]
[1755546519562,2.92,183.2,183.14,77.60869432]
[1755546519753,6.81131498,183.19,183.15,2.87]
[1755546519954,2.92,183.19,183.15,2.87]
[1755546520165,2.92,183.18,183.15,2.87]
[1755546520356,2.92,183.21,183.16,2.87]
[1755546520565,0.04115447,183.19,183.16,2.87]
[1755546520958,0.04115447,183.19,183.12,2.87]
[1755546521158,0.04115447,183.19,183.14,3.82046804]
[1755546521363,0.04115447,183.19,183.17,2.87]
[1755546521559,2.92,183.22,183.18,2.87]
[1755546521761,2.92,183.2,183.13,2.87]
[1755546521960,2.92,183.18,183.07,2.87]
[1755546522162,2.92,183.16,183.07,2.87]
[1755546522358,2.92,183.16,183.08,5.4593]
[1755546522755,0.03966759,183.13,183.08,5.4593]
[1755546522966,0.03966759,183.13,183.1,2.87]
[1755546523369,0.03966759,183.13,183.11,2.87]
[1755546523764,0.03966759,183.13,183.12,2.87]
[1755546525468,2.92,183.2,183.13,2.87]
[1755546525870,2.92,183.2,183.14,5.4577]
[1755546526669,2.92,183.2,183.13,8.3279]
[1755546526863,2.92,183.19,183.15,0.03610963]
[1755546527069,2.92,183.19,183.15,2.90610963]
[1755546527468,2.92,183.19,183.16,2.87]
[1755546528064,2.92,183.19,183.15,0.03610963]
[1755546528065,133.72,183.22,183.15,0.03610963]
[1755546528264,6.79349471,183.21,183.15,0.03610963]
[1755546528469,3.87349471,183.2,183.15,0.03610963]
[1755546528670,2.92,183.18,183.15,0.03610963]
[1755546528868,2.92,183.21,183.15,0.03610963]
[1755546529068,2.92,183.19,183.15,0.03610963]
[1755546529268,2.92,183.17,183.15,0.03610963]
[1755546529576,2.92,183.16,183.15,0.03610963]
[1755546530671,52.92,183.21,183.15,0.03610963]
[1755546530871,53.8751586,183.2,183.15,0.03610963]
[1755546531068,3.8751586,183.19,183.15,0.03610963]
[1755546531273,6.7951586,183.18,183.15,0.03610963]
[1755546531472,2.92,183.17,183.15,0.03610963]
[1755546531681,2.92,183.16,183.15,0.03610963]
[1755546533268,3.02,183.19,183.15,0.03610963]
[1755546533567,50.0,183.2,183.15,0.03610963]
[1755546533773,3.87178199,183.19,183.15,0.03610963]
[1755546533970,3.02,183.18,183.15,0.03610963]
[1755546534367,3.02,183.17,183.15,0.03610963]
[1755546534976,3.02,183.19,183.15,0.03610963]
[1755546535177,3.02,183.18,183.15,0.03610963]
[1755546535477,3.02,183.17,183.15,0.03610963]
[1755546536671,53.02,183.2,183.15,0.03610963]
[1755546536876,3.02,183.18,183.15,2.89610963]
[1755546537478,3.02,183.17,183.15,0.03610963]
[1755546540378,50.0,183.2,183.17,2.86]
[1755546540572,53.02,183.2,183.16,2.86]
[1755546540880,50.0,183.2,183.16,2.86]
[1755546541077,3.02,183.19,183.16,2.86]
[1755546541268,50.0,183.2,183.15,0.03610963]
[1755546541473,3.02,183.19,183.16,2.86]
[1755546541672,50.0,183.2,183.17,2.86]
[1755546541871,3.87059226,183.19,183.15,0.03610963]
[1755546542076,3.02,183.17,183.15,0.03610963]
[1755546542274,3.02,183.19,183.15,2.89610963]
[1755546542478,3.02,183.19,183.15,0.03610963]
[1755546542678,3.02,183.19,183.16,2.86]
[1755546543076,3.02,183.19,183.15,0.03610963]
[1755546543478,3.02,183.18,183.15,0.03610963]
[1755546543682,50.0,183.2,183.15,0.03610963]
[1755546543885,6.89060113,183.19,183.15,0.03610963]
[1755546544084,3.02,183.19,183.15,0.03610963]
[1755546544382,50.0,183.2,183.15,0.03610963]
[1755546544584,3.02,183.16,183.15,0.03610963]
[1755546546283,50.0,183.2,183.15,0.03610963]
[1755546546284,3.02,183.19,183.15,0.03610963]
[1755546546485,3.02,183.18,183.15,0.03610963]
[1755546546685,3.02,183.18,183.15,2.89610963]
[1755546547092,3.02,183.18,183.15,0.03610963]
[1755546547302,3.02,183.17,183.15,0.03610963]
[1755546548491,3.02,183.16,183.15,0.03610963]
[1755546548887,136.66,183.16,183.15,0.03610963]
[1755546550484,140.53468411,183.16,183.15,0.03610963]
[1755546550984,137.51468411,183.16,183.15,0.03610963]
[1755546551487,3.02,183.18,183.15,0.03610963]
[1755546551684,133.68,183.17,183.15,2.89610963]
[1755546551890,183.74,183.19,183.16,2.86]
[1755546552792,50.0,183.19,183.15,0.03610963]
[1755546553000,50.0,183.19,183.17,2.86]
[1755546553189,3.02,183.18,183.15,0.03610963]
[1755546553392,3.02,183.18,183.15,2.89610963]
[1755546557202,50.0,183.19,183.17,2.86]
[1755546557500,3.8795056,183.18,183.17,2.86]
[1755546558701,3.8795056,183.18,183.16,2.86]
[1755546558892,50.0,183.19,183.15,0.03610963]
[1755546559088,3.88325208,183.18,183.15,2.89610963]
[1755546559298,186.76,183.19,183.15,0.03610963]
[1755546559499,3.8836115,183.18,183.16,2.86]